[Event "Live Chess"]
[Site "Chess.com"]
[Date "2024.06.02"]
[Round "-"]
[White "booktrunk"]
[Black "grillage"]
[Result "0-1"]
[WhiteElo "1502"]
[BlackElo "1856"]
[TimeControl "300"]
[EndTime "18:48:10 PDT"]
[Termination "grillage won by resignation"]

1. d4 {[%clk 0:04:49.9]} 1... e6 {[%clk 0:04:58.7]} 2. Nc3 {[%clk 0:04:47.2]}
2... d5 {[%clk 0:04:54.7]} 3. Bf4 {[%clk 0:04:45]} 3... Nf6 {[%clk 0:04:52.4]}
4. Nb5 {[%clk 0:04:36.8]} 4... Na6 {[%clk 0:04:51.3]} 5. e3 {[%clk 0:04:32]}
5... c6 {[%clk 0:04:50.5]} 6. Nc3 {[%clk 0:04:21.5]} 6... Nb8 {[%clk 0:04:49.5]}
7. Nf3 {[%clk 0:04:18.9]} 7... Nbd7 {[%clk 0:04:48.6]} 8. a3 {[%clk 0:04:16.9]}
8... Be7 {[%clk 0:04:45.7]} 9. Ne5 {[%clk 0:04:14]} 9... O-O {[%clk 0:04:43.4]}
10. Nxd7 {[%clk 0:04:12.5]} 10... Qxd7 {[%clk 0:04:42.4]} 11. Be2 {[%clk
0:04:09.9]} 11... b6 {[%clk 0:04:38.2]} 12. Bf3 {[%clk 0:04:08.2]} 12... c5
{[%clk 0:04:36.3]} 13. dxc5 {[%clk 0:04:06.3]} 13... bxc5 {[%clk 0:04:35.3]} 14.
O-O {[%clk 0:04:03.5]} 14... Bd6 {[%clk 0:04:34.1]} 15. Bxd6 {[%clk 0:04:00.7]}
15... Qxd6 {[%clk 0:04:33.2]} 16. g3 {[%clk 0:03:50.3]} 16... Rb8 {[%clk
0:04:32.1]} 17. Rb1 {[%clk 0:03:48]} 17... Ba6 {[%clk 0:04:31]} 18. Be2 {[%clk
0:03:44.5]} 18... Bxe2 {[%clk 0:04:28.6]} 19. Nxe2 {[%clk 0:03:42]} 19... Qe5
{[%clk 0:04:27]} 20. c3 {[%clk 0:03:38.1]} 20... Qh5 {[%clk 0:04:24.2]} 21. Nf4
{[%clk 0:03:34.6]} 21... Qh6 {[%clk 0:04:23]} 22. Kg2 {[%clk 0:03:29.3]} 22...
Ng4 {[%clk 0:04:21.4]} 23. Qxg4 {[%clk 0:03:24.2]} 23... c4 {[%clk 0:04:16.6]}
24. Qh5 {[%clk 0:03:10.8]} 24... Qf6 {[%clk 0:04:14.3]} 25. Ne2 {[%clk
0:03:02.8]} 25... Qe7 {[%clk 0:04:05.4]} 26. Nd4 {[%clk 0:02:59.2]} 26... Qc7
{[%clk 0:04:01.2]} 27. Qg4 {[%clk 0:02:55.1]} 27... Rb7 {[%clk 0:03:52.3]} 28.
h4 {[%clk 0:02:50.7]} 28... Rfb8 {[%clk 0:03:50.1]} 29. Qe2 {[%clk 0:02:49.1]}
29... Rb6 {[%clk 0:03:37.4]} 30. Rfc1 {[%clk 0:02:46.2]} 30... Qb7 {[%clk
0:03:36.1]} 31. Rc2 {[%clk 0:02:43.5]} 31... a5 {[%clk 0:03:27.7]} 32. Nf3
{[%clk 0:02:39.2]} 32... Rb3 {[%clk 0:03:25.4]} 33. Ne1 {[%clk 0:02:35.6]} 33...
Rxa3 {[%clk 0:03:23.5]} 34. Nf3 {[%clk 0:02:29.4]} 34... Rb3 {[%clk 0:03:20.7]}
35. Nd4 {[%clk 0:02:28]} 35... Rb6 {[%clk 0:03:19.5]} 36. f3 {[%clk 0:02:15.4]}
36... a4 {[%clk 0:03:17.8]} 37. e4 {[%clk 0:02:13.7]} 37... a3 {[%clk
0:03:11.8]} 38. b4 {[%clk 0:02:11.2]} 38... cxb3 {[%clk 0:03:09.4]} 39. Rxb3
{[%clk 0:02:09.2]} 39... Rxb3 {[%clk 0:03:07.4]} 40. Nxb3 {[%clk 0:02:08.2]}
40... Qxb3 {[%clk 0:03:06.5]} 41. Ra2 {[%clk 0:02:03]} 41... Qxc3 {[%clk
0:03:01.1]} 42. Qe1 {[%clk 0:01:59.3]} 42... Rb2+ {[%clk 0:02:59.2]} 43. Rxb2
{[%clk 0:01:56.1]} 43... Qxb2+ {[%clk 0:02:58.6]} 44. Kh3 {[%clk 0:01:55.3]}
44... a2 {[%clk 0:02:57.7]} 45. Qa5 {[%clk 0:01:54.1]} 45... h6 {[%clk 0:02:55]}
46. Qd8+ {[%clk 0:01:52.2]} 46... Kh7 {[%clk 0:02:53.9]} 47. Qf8 {[%clk
0:01:49.9]} 47... a1=Q {[%clk 0:02:48.9]} 48. Qxf7 {[%clk 0:01:49.8]} 48... Qf6
{[%clk 0:02:47.3]} 0-1

[Event "Live Chess"]
[Site "Chess.com"]
[Date "2024.06.02"]
[Round "-"]
[White "MagnersCarlsberg2870"]
[Black "Crowded_House"]
[Result "1-0"]
[WhiteElo "1807"]
[BlackElo "1693"]
[TimeControl "300"]
[EndTime "18:48:54 PDT"]
[Termination "MagnersCarlsberg2870 won by checkmate"]

1. d4 {[%clk 0:04:55.6]} 1... e6 {[%clk 0:04:58]} 2. Nd2 {[%clk 0:04:53.9]} 2...
d5 {[%clk 0:04:56]} 3. e3 {[%clk 0:04:52.8]} 3... c5 {[%clk 0:04:54.3]} 4. c3
{[%clk 0:04:51.6]} 4... Nc6 {[%clk 0:04:51.9]} 5. Bd3 {[%clk 0:04:50.5]} 5...
Qb6 {[%clk 0:04:49.8]} 6. f4 {[%clk 0:04:49.1]} 6... Nf6 {[%clk 0:04:46.9]} 7.
Ngf3 {[%clk 0:04:48.2]} 7... Bd6 {[%clk 0:04:45]} 8. Qe2 {[%clk 0:04:45.5]} 8...
O-O {[%clk 0:04:43.1]} 9. Ne5 {[%clk 0:04:44.6]} 9... cxd4 {[%clk 0:04:34.9]}
10. exd4 {[%clk 0:04:43.4]} 10... Ne7 {[%clk 0:04:21.9]} 11. g4 {[%clk
0:04:41.4]} 11... Ne4 {[%clk 0:04:17.3]} 12. Nxe4 {[%clk 0:04:39.3]} 12... dxe4
{[%clk 0:04:15.9]} 13. Qxe4 {[%clk 0:04:38.5]} 13... Ng6 {[%clk 0:04:10.7]} 14.
h4 {[%clk 0:04:30.1]} 14... f5 {[%clk 0:04:05.4]} 15. gxf5 {[%clk 0:04:21.1]}
15... exf5 {[%clk 0:04:02.7]} 16. Qd5+ {[%clk 0:04:18.6]} 16... Kh8 {[%clk
0:03:50.4]} 17. Nf7+ {[%clk 0:04:17.6]} 17... Kg8 {[%clk 0:03:48.9]} 18. Nh6+
{[%clk 0:04:16.7]} 18... Kh8 {[%clk 0:03:45.5]} 19. Qg8+ {[%clk 0:04:15.8]}
19... Rxg8 {[%clk 0:03:43.2]} 20. Nf7# {[%clk 0:04:15]} 1-0

[Event "Live Chess"]
[Site "Chess.com"]
[Date "2024.06.02"]
[Round "-"]
[White "MaksymYurii"]
[Black "RafaelRony"]
[Result "0-1"]
[WhiteElo "964"]
[BlackElo "1074"]
[TimeControl "300"]
[EndTime "18:49:14 PDT"]
[Termination "RafaelRony won by resignation"]

1. e4 {[%clk 0:04:58.1]} 1... e6 {[%clk 0:04:58.4]} 2. f4 {[%clk 0:04:56.3]}
2... d5 {[%clk 0:04:57.8]} 3. d3 {[%clk 0:04:47.3]} 3... dxe4 {[%clk 0:04:55.9]}
4. Nh3 {[%clk 0:04:34.1]} 4... exd3 {[%clk 0:04:52.8]} 5. Bxd3 {[%clk
0:04:31.8]} 5... Nf6 {[%clk 0:04:52.2]} 6. O-O {[%clk 0:04:26.5]} 6... Bc5+
{[%clk 0:04:47.1]} 7. Kh1 {[%clk 0:04:24.2]} 7... O-O {[%clk 0:04:40.5]} 8. Ng5
{[%clk 0:04:19.6]} 8... h6 {[%clk 0:04:37]} 9. Bh7+ {[%clk 0:04:12.7]} 9... Nxh7
{[%clk 0:04:35]} 10. Nxh7 {[%clk 0:04:07.9]} 10... Kxh7 {[%clk 0:04:32]} 11. Qh5
{[%clk 0:03:54.6]} 11... Bd6 {[%clk 0:04:19.4]} 12. f5 {[%clk 0:03:52.6]} 12...
exf5 {[%clk 0:04:16.4]} 13. Bxh6 {[%clk 0:03:41.7]} 13... gxh6 {[%clk
0:04:14.7]} 14. Nc3 {[%clk 0:03:22.5]} 14... Qg5 {[%clk 0:04:05]} 15. Qf3 {[%clk
0:03:07.9]} 15... Rg8 {[%clk 0:03:38.3]} 16. g3 {[%clk 0:03:02.3]} 16... Bd7
{[%clk 0:03:36.6]} 17. Qd3 {[%clk 0:02:45.1]} 17... Bc6+ {[%clk 0:03:32.6]} 18.
Kg1 {[%clk 0:02:42.6]} 18... Bc5+ {[%clk 0:03:25.2]} 19. Rf2 {[%clk 0:02:28.3]}
19... Bxf2+ {[%clk 0:03:22.5]} 20. Kxf2 {[%clk 0:02:27.4]} 20... Nd7 {[%clk
0:03:12.3]} 21. Rf1 {[%clk 0:02:14.3]} 21... Rad8 {[%clk 0:03:10.2]} 22. Kg1
{[%clk 0:02:10.9]} 22... Kh8 {[%clk 0:03:04]} 23. Rxf5 {[%clk 0:02:01.5]} 23...
Qg4 {[%clk 0:02:55.3]} 24. Rf4 {[%clk 0:01:47.6]} 24... Ne5 {[%clk 0:02:47.4]}
25. Qe3 {[%clk 0:01:10.2]} 25... Nf3+ {[%clk 0:02:33.6]} 26. Kf2 {[%clk
0:00:44.1]} 26... Rd2+ {[%clk 0:02:22]} 27. Qxd2 {[%clk 0:00:27]} 27... Nxd2
{[%clk 0:02:17.2]} 28. Rxg4 {[%clk 0:00:26]} 28... Rxg4 {[%clk 0:02:13.8]} 0-1

[Event "Live Chess"]
[Site "Chess.com"]
[Date "2024.06.02"]
[Round "-"]
[White "gobbles19"]
[Black "RockTroll"]
[Result "0-1"]
[WhiteElo "2292"]
[BlackElo "2209"]
[TimeControl "300"]
[EndTime "18:49:50 PDT"]
[Termination "RockTroll won by resignation"]

1. Nf3 {[%clk 0:04:56.8]} 1... Nf6 {[%clk 0:04:59.2]} 2. c4 {[%clk 0:04:54.7]}
2... g6 {[%clk 0:04:58.5]} 3. d4 {[%clk 0:04:54.2]} 3... Bg7 {[%clk 0:04:58]} 4.
Nc3 {[%clk 0:04:53.8]} 4... d6 {[%clk 0:04:57.5]} 5. e4 {[%clk 0:04:53.5]} 5...
O-O {[%clk 0:04:57.1]} 6. h3 {[%clk 0:04:52.6]} 6... e5 {[%clk 0:04:55.8]} 7.
dxe5 {[%clk 0:04:52]} 7... dxe5 {[%clk 0:04:54.3]} 8. Bg5 {[%clk 0:04:51.7]}
8... Nbd7 {[%clk 0:04:34.5]} 9. Be2 {[%clk 0:04:45.8]} 9... c6 {[%clk
0:04:33.5]} 10. O-O {[%clk 0:04:42.6]} 10... Qc7 {[%clk 0:04:32.7]} 11. Qc2
{[%clk 0:04:34.9]} 11... Nc5 {[%clk 0:04:30.8]} 12. b4 {[%clk 0:04:29.4]} 12...
Ne6 {[%clk 0:04:30.1]} 13. Be3 {[%clk 0:04:25.6]} 13... Nh5 {[%clk 0:04:27.1]}
14. Rfd1 {[%clk 0:04:23.4]} 14... a5 {[%clk 0:04:17.2]} 15. a3 {[%clk
0:04:20.6]} 15... axb4 {[%clk 0:04:15.9]} 16. axb4 {[%clk 0:04:20.5]} 16... Rxa1
{[%clk 0:04:14.8]} 17. Rxa1 {[%clk 0:04:20.4]} 17... Nd4 {[%clk 0:04:14.2]} 18.
Qc1 {[%clk 0:03:50.1]} 18... f5 {[%clk 0:03:49.7]} 19. exf5 {[%clk 0:03:33]}
19... Bxf5 {[%clk 0:03:46.9]} 20. Ng5 {[%clk 0:03:17.9]} 20... Nf4 {[%clk
0:03:37]} 21. Bxf4 {[%clk 0:03:13.5]} 21... exf4 {[%clk 0:03:36.2]} 22. Bf1
{[%clk 0:03:04.4]} 22... f3 {[%clk 0:03:30.2]} 23. g4 {[%clk 0:02:58.4]} 23...
Bc8 {[%clk 0:03:21.8]} 24. Ra3 {[%clk 0:02:51.3]} 24... Qb6 {[%clk 0:03:08.3]}
25. b5 {[%clk 0:02:20.6]} 25... Ne2+ {[%clk 0:03:06.6]} 26. Bxe2 {[%clk
0:02:12.9]} 26... fxe2 {[%clk 0:03:05.9]} 27. Qe1 {[%clk 0:02:12]} 27... Qc5
{[%clk 0:03:01.6]} 0-1

[Event "Live Chess"]
[Site "Chess.com"]
[Date "2024.06.02"]
[Round "-"]
[White "RafaelRony"]
[Black "KeithArkell"]
[Result "0-1"]
[WhiteElo "1074"]
[BlackElo "2442"]
[TimeControl "300"]
[EndTime "18:51:14 PDT"]
[Termination "KeithArkell won by resignation"]

1. e4 {[%clk 0:04:56.8]} 1... c6 {[%clk 0:04:59]} 2. d4 {[%clk 0:04:55.1]} 2...
d5 {[%clk 0:04:58.9]} 3. e5 {[%clk 0:04:53.9]} 3... c5 {[%clk 0:04:58.2]} 4. c3
{[%clk 0:04:52.5]} 4... Nc6 {[%clk 0:04:57.7]} 5. Nf3 {[%clk 0:04:51.8]} 5...
cxd4 {[%clk 0:04:57.1]} 6. cxd4 {[%clk 0:04:50.5]} 6... Bg4 {[%clk 0:04:56.7]}
7. Be2 {[%clk 0:04:48.3]} 7... Bxf3 {[%clk 0:04:55.5]} 8. Bxf3 {[%clk
0:04:47.1]} 8... e6 {[%clk 0:04:55.1]} 9. Nc3 {[%clk 0:04:45]} 9... Qb6 {[%clk
0:04:54.1]} 10. Be3 {[%clk 0:04:35.6]} 10... Qxb2 {[%clk 0:04:52.7]} 11. Bd2
{[%clk 0:04:17.4]} 11... Nxd4 {[%clk 0:04:42.5]} 12. Rb1 {[%clk 0:04:13.1]}
12... Nxf3+ {[%clk 0:04:40.7]} 13. Qxf3 {[%clk 0:04:10.2]} 13... Qa3 {[%clk
0:04:38.5]} 14. Rb3 {[%clk 0:03:51.4]} 14... Qa6 {[%clk 0:04:36]} 15. Nb5 {[%clk
0:03:43]} 15... Rc8 {[%clk 0:04:35]} 16. Kf1 {[%clk 0:03:36.9]} 0-1

[Event "Live Chess"]
[Site "Chess.com"]
[Date "2024.06.02"]
[Round "-"]
[White "ShanthamGrarks"]
[Black "e4evr"]
[Result "0-1"]
[WhiteElo "1877"]
[BlackElo "2229"]
[TimeControl "300"]
[EndTime "18:51:19 PDT"]
[Termination "e4evr won by resignation"]

1. d4 {[%clk 0:04:56.8]} 1... Nf6 {[%clk 0:04:57.2]} 2. Nc3 {[%clk 0:04:54.7]}
2... e6 {[%clk 0:04:56.6]} 3. Bf4 {[%clk 0:04:52.7]} 3... Ke7 {[%clk 0:04:55.8]}
4. e4 {[%clk 0:04:50.1]} 4... Ke8 {[%clk 0:04:55.3]} 5. Nf3 {[%clk 0:04:47.8]}
5... Bb4 {[%clk 0:04:54.6]} 6. Bd3 {[%clk 0:04:46.2]} 6... d6 {[%clk 0:04:53.8]}
7. O-O {[%clk 0:04:43.4]} 7... a6 {[%clk 0:04:52.2]} 8. Bg5 {[%clk 0:04:41.6]}
8... Bxc3 {[%clk 0:04:51]} 9. bxc3 {[%clk 0:04:39.7]} 9... h6 {[%clk 0:04:50.5]}
10. Bh4 {[%clk 0:04:37.7]} 10... g5 {[%clk 0:04:49.6]} 11. Bg3 {[%clk
0:04:36.7]} 11... Nbd7 {[%clk 0:04:49]} 12. e5 {[%clk 0:04:34.2]} 12... Nh5
{[%clk 0:04:46.5]} 13. exd6 {[%clk 0:04:31.9]} 13... Nxg3 {[%clk 0:04:45.8]} 14.
dxc7 {[%clk 0:04:23.9]} 14... Qxc7 {[%clk 0:04:44.3]} 15. hxg3 {[%clk 0:04:23]}
15... Nf6 {[%clk 0:04:37.8]} 16. Ne5 {[%clk 0:04:19.3]} 16... Bd7 {[%clk
0:04:36.6]} 17. c4 {[%clk 0:04:10.6]} 17... Bc6 {[%clk 0:04:34.9]} 18. Nxc6
{[%clk 0:04:06.1]} 18... bxc6 {[%clk 0:04:33.3]} 19. Qe2 {[%clk 0:03:50.2]}
19... h5 {[%clk 0:04:31.2]} 20. d5 {[%clk 0:03:31.2]} 20... cxd5 {[%clk
0:04:28]} 21. cxd5 {[%clk 0:03:29.8]} 21... Nxd5 {[%clk 0:04:27.1]} 22. Be4
{[%clk 0:03:26.3]} 22... Nc3 {[%clk 0:04:24.6]} 23. Qd3 {[%clk 0:03:12.9]} 23...
Nxe4 {[%clk 0:04:20.2]} 24. Qxe4 {[%clk 0:03:12.3]} 24... Ke7 {[%clk 0:04:19.5]}
25. Rab1 {[%clk 0:03:07.7]} 25... Rab8 {[%clk 0:04:17.7]} 26. Rxb8 {[%clk
0:03:02.3]} 26... Rxb8 {[%clk 0:04:17.6]} 27. Qh7 {[%clk 0:02:54.6]} 27... h4
{[%clk 0:04:14.4]} 28. Qg7 {[%clk 0:02:44.6]} 28... Rb5 {[%clk 0:03:58.3]} 29.
gxh4 {[%clk 0:02:41.8]} 29... gxh4 {[%clk 0:03:56.8]} 30. c3 {[%clk 0:02:36.5]}
30... h3 {[%clk 0:03:55]} 31. g3 {[%clk 0:02:30.3]} 31... Qc6 {[%clk 0:03:51.5]}
32. f3 {[%clk 0:02:19.1]} 32... Rb2 {[%clk 0:03:50]} 33. Qg5+ {[%clk 0:02:10.2]}
33... Kf8 {[%clk 0:03:42]} 34. Qh6+ {[%clk 0:02:08.8]} 34... Kg8 {[%clk
0:03:40.6]} 35. Qxh3 {[%clk 0:02:07.4]} 35... Qxc3 {[%clk 0:03:36.9]} 36. Qg4+
{[%clk 0:02:05.5]} 36... Qg7 {[%clk 0:03:35.8]} 37. Qh4 {[%clk 0:01:39.2]} 37...
Qe5 {[%clk 0:03:16.7]} 38. Qd8+ {[%clk 0:01:34.8]} 38... Kg7 {[%clk 0:03:15.5]}
39. Qd3 {[%clk 0:01:26.2]} 39... Qxg3+ {[%clk 0:03:14.1]} 0-1

[Event "Live Chess"]
[Site "Chess.com"]
[Date "2024.06.02"]
[Round "-"]
[White "GerardATHart"]
[Black "WelshTiger"]
[Result "0-1"]
[WhiteElo "1393"]
[BlackElo "2440"]
[TimeControl "300"]
[EndTime "18:51:25 PDT"]
[Termination "WelshTiger won by resignation"]

1. e4 {[%clk 0:04:52.8]} 1... c5 {[%clk 0:04:57.7]} 2. Nc3 {[%clk 0:04:49.8]}
2... e6 {[%clk 0:04:56.3]} 3. d4 {[%clk 0:04:46.8]} 3... cxd4 {[%clk 0:04:54.1]}
4. Qxd4 {[%clk 0:04:43.6]} 4... Nc6 {[%clk 0:04:53.4]} 5. Qd2 {[%clk 0:04:41.1]}
5... Bb4 {[%clk 0:04:47.4]} 6. b3 {[%clk 0:04:36.4]} 6... Nf6 {[%clk 0:04:45.1]}
7. f3 {[%clk 0:04:34.1]} 7... d5 {[%clk 0:04:42.5]} 8. a3 {[%clk 0:04:11.8]}
8... Bxc3 {[%clk 0:04:14.3]} 9. Qxc3 {[%clk 0:04:05.7]} 9... dxe4 {[%clk
0:04:14.2]} 10. fxe4 {[%clk 0:03:41.7]} 10... Qd4 {[%clk 0:04:13.1]} 11. Qxd4
{[%clk 0:03:35.1]} 11... Nxd4 {[%clk 0:04:13]} 12. Bd3 {[%clk 0:03:32.4]} 12...
e5 {[%clk 0:03:56.8]} 13. Nf3 {[%clk 0:03:28.1]} 13... Nxf3+ {[%clk 0:03:51.4]}
14. gxf3 {[%clk 0:03:26.1]} 14... Be6 {[%clk 0:03:48]} 15. Rg1 {[%clk
0:03:22.1]} 15... g6 {[%clk 0:03:45]} 16. Bg5 {[%clk 0:03:14.4]} 16... Nh5
{[%clk 0:03:43.7]} 17. O-O-O {[%clk 0:03:09.3]} 17... f6 {[%clk 0:03:42.9]} 18.
Be3 {[%clk 0:03:04.3]} 18... a6 {[%clk 0:03:34.4]} 19. Bc5 {[%clk 0:02:53.7]}
19... Rc8 {[%clk 0:03:33.2]} 20. b4 {[%clk 0:02:49.2]} 20... Nf4 {[%clk
0:03:27.1]} 21. Bf1 {[%clk 0:02:25.9]} 21... Kf7 {[%clk 0:03:25]} 22. Rd6 {[%clk
0:02:22.5]} 22... Rhd8 {[%clk 0:03:20.5]} 23. c4 {[%clk 0:02:05.8]} 23... Rxd6
{[%clk 0:03:15.8]} 24. Bxd6 {[%clk 0:02:03.2]} 24... Bxc4 {[%clk 0:03:15]} 25.
Bxc4+ {[%clk 0:02:00.4]} 25... Rxc4+ {[%clk 0:03:14.1]} 26. Kb2 {[%clk
0:01:58.2]} 26... Ke6 {[%clk 0:03:05.9]} 27. Bc5 {[%clk 0:01:55.7]} 27... Nd3+
{[%clk 0:02:48.7]} 28. Kb3 {[%clk 0:01:53]} 28... Rc1 {[%clk 0:02:48.3]} 29. Rg2
{[%clk 0:01:49.1]} 29... Nxc5+ {[%clk 0:02:43]} 30. bxc5 {[%clk 0:01:44]} 30...
Rxc5 {[%clk 0:02:42.9]} 31. Rc2 {[%clk 0:01:41.9]} 31... Rxc2 {[%clk 0:02:41.5]}
32. Kxc2 {[%clk 0:01:40.4]} 32... Kd6 {[%clk 0:02:40.4]} 33. Kc3 {[%clk
0:01:37.8]} 33... Kc5 {[%clk 0:02:39.7]} 34. a4 {[%clk 0:01:36]} 34... b5 {[%clk
0:02:38.8]} 35. a5 {[%clk 0:01:34.4]} 35... b4+ {[%clk 0:02:37.4]} 36. Kb3
{[%clk 0:01:32.9]} 36... Kb5 {[%clk 0:02:36.8]} 37. h4 {[%clk 0:01:29.6]} 37...
f5 {[%clk 0:02:29.3]} 0-1

[Event "Live Chess"]
[Site "Chess.com"]
[Date "2024.06.02"]
[Round "-"]
[White "Dhaydon19"]
[Black "juniortay"]
[Result "1/2-1/2"]
[WhiteElo "2680"]
[BlackElo "2423"]
[TimeControl "300"]
[EndTime "18:52:40 PDT"]
[Termination "Game drawn by repetition"]

1. d4 {[%clk 0:04:56.8]} 1... d5 {[%clk 0:04:55]} 2. Nf3 {[%clk 0:04:55.8]} 2...
c5 {[%clk 0:04:54.1]} 3. g3 {[%clk 0:04:55.5]} 3... Nc6 {[%clk 0:04:52.7]} 4.
dxc5 {[%clk 0:04:54.4]} 4... Nf6 {[%clk 0:04:52.6]} 5. Bg2 {[%clk 0:04:53.3]}
5... e6 {[%clk 0:04:52.2]} 6. O-O {[%clk 0:04:52.7]} 6... Bxc5 {[%clk
0:04:51.9]} 7. c4 {[%clk 0:04:52]} 7... O-O {[%clk 0:04:51.1]} 8. cxd5 {[%clk
0:04:51]} 8... exd5 {[%clk 0:04:51]} 9. Qc2 {[%clk 0:04:49.9]} 9... Bb6 {[%clk
0:04:49.8]} 10. Nc3 {[%clk 0:04:49.2]} 10... d4 {[%clk 0:04:47.5]} 11. Ne4
{[%clk 0:04:48.3]} 11... Bf5 {[%clk 0:04:45.9]} 12. Nh4 {[%clk 0:04:46.5]} 12...
Nxe4 {[%clk 0:04:44.3]} 13. Nxf5 {[%clk 0:04:43]} 13... Nc5 {[%clk 0:04:39.6]}
14. a3 {[%clk 0:04:37.6]} 14... Qd7 {[%clk 0:04:23.4]} 15. b4 {[%clk 0:04:27.6]}
15... d3 {[%clk 0:04:22.6]} 16. exd3 {[%clk 0:04:25.5]} 16... Qxf5 {[%clk
0:04:20.6]} 17. bxc5 {[%clk 0:04:23.6]} 17... Bxc5 {[%clk 0:04:17.8]} 18. Be4
{[%clk 0:04:21.4]} 18... Qh5 {[%clk 0:04:15.7]} 19. Be3 {[%clk 0:04:12.8]} 19...
Nd4 {[%clk 0:04:08.3]} 20. Qc4 {[%clk 0:04:10.8]} 20... Ne6 {[%clk 0:03:56.9]}
21. d4 {[%clk 0:03:59.3]} 21... Bb6 {[%clk 0:03:52.1]} 22. Bxb7 {[%clk
0:03:57.7]} 22... Rad8 {[%clk 0:03:50.3]} 23. Rad1 {[%clk 0:03:51]} 23... Ng5
{[%clk 0:03:38.1]} 24. Qc6 {[%clk 0:03:39.5]} 24... Rfe8 {[%clk 0:03:25.4]} 25.
Rfe1 {[%clk 0:03:25.9]} 25... Re6 {[%clk 0:02:49.9]} 26. Qg2 {[%clk 0:03:08.2]}
26... Red6 {[%clk 0:02:31.3]} 27. h4 {[%clk 0:02:56.2]} 27... Ne6 {[%clk
0:02:28.8]} 28. Bf3 {[%clk 0:02:48]} 28... Qg6 {[%clk 0:02:27.4]} 29. d5 {[%clk
0:02:44.6]} 29... Nc5 {[%clk 0:02:10.5]} 30. Bf4 {[%clk 0:02:40.8]} 30... R6d7
{[%clk 0:02:07.2]} 31. d6 {[%clk 0:02:35.4]} 31... Nd3 {[%clk 0:02:04.8]} 32.
Re4 {[%clk 0:02:26.4]} 32... Nxf4 {[%clk 0:02:02]} 33. Rxf4 {[%clk 0:02:25.5]}
33... Rxd6 {[%clk 0:02:00.4]} 34. Rxd6 {[%clk 0:02:22.8]} 34... Qxd6 {[%clk
0:01:58.1]} 35. a4 {[%clk 0:02:16.7]} 35... g6 {[%clk 0:01:52.3]} 36. h5 {[%clk
0:02:13.7]} 36... Kg7 {[%clk 0:01:50.8]} 37. Qf1 {[%clk 0:02:08.8]} 37... Qd2
{[%clk 0:01:44.1]} 38. Qe2 {[%clk 0:01:58.1]} 38... Qxe2 {[%clk 0:01:42.2]} 39.
Bxe2 {[%clk 0:01:56.7]} 39... Rd2 {[%clk 0:01:41]} 40. Kf1 {[%clk 0:01:54.8]}
40... g5 {[%clk 0:01:39.9]} 41. Rf5 {[%clk 0:01:42.3]} 41... h6 {[%clk
0:01:37.9]} 42. a5 {[%clk 0:01:41.3]} 42... Bd4 {[%clk 0:01:35.7]} 43. Bc4
{[%clk 0:01:39]} 43... f6 {[%clk 0:01:33.7]} 44. Ke1 {[%clk 0:01:30.5]} 44...
Rc2 {[%clk 0:01:32.2]} 45. Bd3 {[%clk 0:01:28.2]} 45... Ra2 {[%clk 0:01:30.1]}
46. a6 {[%clk 0:01:22.7]} 46... Kf8 {[%clk 0:01:26.9]} 47. Kf1 {[%clk
0:01:15.2]} 47... Ke7 {[%clk 0:01:25.9]} 48. Rf3 {[%clk 0:01:13.6]} 48... Kd6
{[%clk 0:01:23.1]} 49. Kg2 {[%clk 0:01:10.5]} 49... Ke5 {[%clk 0:01:22.2]} 50.
Rf5+ {[%clk 0:01:09.4]} 50... Kd6 {[%clk 0:01:20.3]} 51. Rf3 {[%clk 0:01:08.8]}
51... Ke5 {[%clk 0:01:19.4]} 52. Kf1 {[%clk 0:01:05.8]} 52... Rd2 {[%clk
0:01:17.3]} 53. Rf5+ {[%clk 0:01:02.9]} 53... Ke6 {[%clk 0:01:16.6]} 54. Rf3
{[%clk 0:01:02.6]} 54... Ke5 {[%clk 0:01:15.9]} 55. Bg6 {[%clk 0:01:00.8]} 55...
Ra2 {[%clk 0:01:11.3]} 56. Bd3 {[%clk 0:00:59.1]} 56... Rd2 {[%clk 0:01:09.3]}
1/2-1/2